Cogmind - Beta 13 @@@ ROGUE MODE // 2024.04.01 @ 20:15:29 Player: Multimark Result: Self-destructed Performance ------------- Evolutions (1) 500 Regions Visited (2) 400 Robots Destroyed (19) 95 Value Destroyed (455) 455 Prototype IDs (3) 60 Alien Tech Used (0) 0 Bonus (0) 0 TOTAL SCORE: 1510 Bonus ------- None Cogmind --------- Core Integrity 234/400 Matter 300/300 Energy 100/100 System Corruption 0% Temperature Cool (0) Movement Core (750) Ox14 Location -9/Materials Parts ------- > --- POWER (1) -------- (None) > --- PROPULSION (4) --- (None) > --- UTILITY (2) ------ High-capacity Storage Unit ECM Suite > --- WEAPON (2) ------- Improved Assault Rifle > --- INVENTORY (20) --- Ion Engine Light Ion Engine Seismic Detector Transport Network Coupler Medium Laser Medium Laser Beam Rifle Beam Cannon Light Assault Rifle Peak State ------------ > --- POWER ------------ Ion Engine > --- PROPULSION ------- Aluminum Leg Aluminum Leg Aluminum Leg > --- UTILITY ---------- High-capacity Storage Unit ECM Suite > --- WEAPON ----------- Improved EM Shotgun Improved Assault Rifle > --- INVENTORY -------- Ion Engine Light Ion Engine Seismic Detector Transport Network Coupler Medium Laser Medium Laser Beam Rifle Beam Cannon Light Assault Rifle [Rating: 13] Favorites ----------- Power Ion Engine Engine Ion Engine Propulsion Aluminum Leg Leg Aluminum Leg Utility ECM Suite Device ECM Suite Storage High-capacity Storage Unit Weapon Medium Laser Energy Gun Medium Laser Energy Cannon Beam Cannon Ballistic Gun Light Assault Rifle Build | -11 -10 -9 ------- Run | Yrd Mat Mat Slots Evolved 2 | . . 2 Power . | . . . Propulsion 2 | . . 2 Utility . | . . . Weapon . | . . . Parts Attached 17 | 5 8 4 Power 2 | 1 1 . Engine 2 | 1 1 . Core . | . . . Reactor . | . . . Propulsion 6 | 2 3 1 Treads . | . . . Leg 6 | 2 3 1 Wheel . | . . . Hover . | . . . Flight . | . . . Utility 3 | . 3 . Device 1 | . 1 . Storage 2 | . 2 . Processor . | . . . Hackware . | . . . Protection . | . . . Artifact . | . . . Weapon 6 | 2 1 3 Energy Gun 3 | 1 . 2 Energy Cannon 1 | . 1 . Ballistic Gun 2 | 1 . 1 Ballistic Cannon . | . . . Launcher . | . . . Special Weapon . | . . . Impact Weapon . | . . . Slashing Weapon . | . . . Piercing Weapon . | . . . Special Melee Weapon . | . . . Unidentified Prototypes 1 | . . 1 Parts Lost 5 | . . 5 Power 1 | . . 1 Propulsion 3 | . . 3 Utility . | . . . Weapon 1 | . . 1 Highest Loss Streak 5 | . . 5 To Critical Strikes . | . . . Average Slot Usage (%) 97 | . 99 85 Engine 13 | . 14 10 Leg 28 | . 28 31 Device 13 | . 13 11 Storage 13 | . 14 11 Energy Gun 13 | . 14 12 Energy Cannon 6 | . 8 . Ballistic Gun 6 | . 5 8 Naked Turns . | . . . Heaviest Build 53 | 8 52 53 Greatest Support 30 | 20 20 30 Greatest Overweight (x) 17 | . 2 17 Average Overweight (x) 1 | . 1 1 Largest Inventory Capacity 20 | 5 20 20 Average Capacity 18 | 5 18 20 Most Carried 10 | 5 10 9 Average Carried 7 | 2 6 8 Final Capacity 20 | 5 20 20 Final Carried 9 | 5 7 9 Class Distribution -------------------- 83% | Mutant 16% | Scavenger-Mutant Dominant Class ---------------- Mutant | -10/Materials Scavenger-Mutant | -9/Materials Resources | -11 -10 -9 ----------- Run | Yrd Mat Mat Matter Collected 522 | 217 134 171 Remotely . | . . . Salvage Created 577 | . 283 294 Parts 42 | . 26 16 Haulers Intercepted . | . . . Recyclers Shooed . | . . . Parts Field Recycled . | . . . Retrieved Matter . | . . . Parts Self-Destructed . | . . . Prevented . | . . . Kills | -11 -10 -9 ------- Run | Yrd Mat Mat Combat Hostiles Destroyed 11 | . 7 4 Guns 8 | . 5 3 Cannons 2 | . 2 . Classes Destroyed 6 | . 4 2 Worker 1 | . . 1 Tunneler 1 | . . 1 Operator 1 | . 1 . Watcher 5 | . 2 3 Swarmer 3 | . 3 . Grunt 8 | . 4 4 Best Kill Streak 5 | . 3 5 Combat Bots Only 3 | . 3 2 Max Kills in Single Turn 2 | . 1 2 Gunslinging 1 | . . 1 Exploded . | . . . Melee . | . . . Uniques/NPCs Destroyed . | . . . Combat | -11 -10 -9 -------- Run | Yrd Mat Mat Hostile Shots Fired 122 | . 36 86 Missed 38 | . 5 33 Damage Taken 941 | . 346 595 Core 237 | . 71 166 Absorbed by Shields . | . . . Core Remaining (%) 85 | 100 71 . Volleys Fired 76 | . 39 37 Largest 2 | . 2 2 Hottest 110 | . 110 68 Shots Fired 135 | . 77 58 Gun 119 | . 61 58 Cannon 16 | . 16 . Launcher . | . . . Special . | . . . Kinetic 60 | . 23 37 Thermal 54 | . 54 . Explosive . | . . . Electromagnetic 21 | . . 21 Robot Hit Streak 8 | . 7 8 Robot Miss Streak 5 | . 3 5 Penetration Max . | . . . Secondary Targets 1 | . . 1 Max Gunslinging Chain 1 | . . 1 Shots Hit Robots 90 | . 48 42 Core Hits 27 | . 15 12 Critical Kills . | . . . Critical Parts Destroyed . | . . . Critical Strikes 3 | . 3 . Burn 3 | . 3 . Melee Attacks . | . . . Impact . | . . . Slashing . | . . . Piercing . | . . . Sneak Attacks . | . . . Combat Hostiles . | . . . Follow-up Attacks . | . . . Damage Inflicted 1202 | . 515 687 Guns 996 | . 409 587 Cannons 104 | . 104 . Explosions 100 | . . 100 Melee . | . . . Ramming 2 | . 2 . Kinetic 440 | . 148 292 Thermal 465 | . 365 100 Explosive . | . . . Electromagnetic 295 | . . 295 Impact . | . . . Slashing . | . . . Piercing . | . . . Highest Corruption 4 | . 4 . Average Corruption 3 | . 3 . Corruption Purged . | . . . Corruption Blocked . | . . . Effects 11 | . 11 . Message Errors 2 | . 2 . Matter Fused 3 | . 3 . Heat Flow Errors 1 | . 1 . Energy Discharges 3 | . 3 . Data Loss (minor) 2 | . 2 . Overload Shots . | . . . Overflow Damage . | . . . Projectiles . | . . . Explosions . | . . . Melee . | . . . Knockbacks . | . . . Impact . | . . . Kinetic . | . . . Secondary . | . . . Self-Inflicted Damage . | . . . Shots . | . . . Rammed . | . . . Targets Rammed 1 | . 1 . Kicked 1 | . 1 . Crushed . | . . . Highest Temperature 312 | . 312 18 Average Temperature 77 | . 97 13 Received Heat Transfer 516 | . 192 324 Effects 1 | . 1 . Energy Bleed 1 | . 1 . Siege Activations . | . . . Robots Corrupted 1 | . . 1 Combat Hostiles 1 | . . 1 Parts Fried 2 | . . 2 Impact Corruptions . | . . . Robots Melted . | . . . Combat Hostiles . | . . . Parts Melted 2 | . 2 . Heat Transferred 1371 | . 1221 150 Parts Sabotaged . | . . . Parts Stolen . | . . . Parts Stripped . | . . . Power Chain Reactions 1 | . . 1 Alert | -11 -10 -9 ------- Run | Yrd Mat Mat Peak Influence 160 | . 92 160 Initial 9 | . . 9 Average 35 | . 32 54 Maximum Alert Level . | . . . Low Security (%) 100 | 100 100 100 Level 1 . | . . . Level 2 . | . . . Level 3 . | . . . Level 4 . | . . . Level 5 . | . . . High Security . | . . . Max Security . | . . . Squads Dispatched 3 | . . 3 Investigation 1 | . . 1 Extermination . | . . . Reinforcement 2 | . . 2 Assault . | . . . Garrison . | . . . Intercept . | . . . Searches Triggered . | . . . Construction Impeded 1 | . . 1 Haulers Reinforced . | . . . Active Scanning Responses . | . . . Cargo Convoy Interrupts . | . . . Stealth | -11 -10 -9 --------- Run | Yrd Mat Mat Distress Signals 4 | . . 4 Communications Jammed . | . . . Distress Signals . | . . . Times Spotted 31 | . 12 19 Peak Tracking Total 7 | . 3 7 Tactical Retreats 3 | . 1 2 Traps | -11 -10 -9 ------- Run | Yrd Mat Mat Traps Triggered 2 | . 2 . Indirectly . | . . . Trap Hack Attempts . | . . . Triggered . | . . . Disarmed . | . . . Reprogrammed . | . . . Reused . | . . . Traps Extracted . | . . . Installed . | . . . Triggered . | . . . Machines | -11 -10 -9 ---------- Run | Yrd Mat Mat Machines Disabled 1 | . . 1 Max in Single Turn 1 | . . 1 Machines Repaired . | . . . Machines Dismantled . | . . . Machines Sabotaged . | . . . Overloaded Fab Kills . | . . . Hacking | -11 -10 -9 --------- Run | Yrd Mat Mat Machines Accessed 3 | . 3 . Terminals 3 | . 3 . Fabricators . | . . . Repair Stations . | . . . Recycling Units . | . . . Scanalyzers . | . . . Garrison Access . | . . . Total Hacks 3 | . 3 . Successful 2 | . 2 . Failed 1 | . 1 . Catastrophic 1 | . 1 . Database Lockouts . | . . . Manual . | . . . Terminals 3 | . 3 . Fabricators . | . . . Repair Stations . | . . . Recycling Units . | . . . Scanalyzers . | . . . Garrison Access . | . . . Terminal Hacks 2 | . 2 . Record 1 | . 1 . Prototype ID Bank 1 | . 1 . Fabricator Hacks . | . . . Repair Station Hacks . | . . . Recycling Unit Hacks . | . . . Scanalyzer . | . . . Garrison Access Hacks . | . . . Unauthorized Hacks . | . . . Terminals . | . . . Fabricators . | . . . Repair Stations . | . . . Recycling Units . | . . . Scanalyzers . | . . . Garrison Access . | . . . Data Cores Recovered . | . . . Used . | . . . Hacking Detections 1 | . 1 . Full Trace Events . | . . . Feedback Events . | . . . Feedback Blocked . | . . . Robot Schematics Acquired . | . . . Robots Built . | . . . Authchips . | . . . Time . | . . . Total Robot Build Rating . | . . . Part Schematics Acquired . | . . . Parts Built . | . . . Authchips . | . . . Time . | . . . Total Part Build Rating . | . . . Parts Repaired . | . . . Time . | . . . Parts Recycled . | . . . Recycled Matter . | . . . Retrieved Matter . | . . . Retrieved Components . | . . . Parts Scanalyzed . | . . . Part Schematics Acquired . | . . . Parts Damaged . | . . . Bothacking | -11 -10 -9 ------------ Run | Yrd Mat Mat Used RIF Installer . | . . . Robots Hacked . | . . . Non-combat . | . . . Combat . | . . . Robot Hacks Applied . | . . . Relay Couplers Released . | . . . Fabnet Peak Effective % . | . . . Robots Rewired . | . . . Allies Hacked . | . . . Hacks Repelled . | . . . Allies | -11 -10 -9 -------- Run | Yrd Mat Mat Total Allies . | . . . Largest Group . | . . . Highest-Rated Group . | . . . Highest-Rated Ally . | . . . Total Orders . | . . . Ally Attacks . | . . . Total Damage . | . . . Kills . | . . . Allies Corrupted . | . . . Allies Melted . | . . . Intel | -11 -10 -9 ------- Run | Yrd Mat Mat Robot Analysis Total . | . . . Derelict Logs Recovered . | . . . Drone Launches . | . . . Drone Recoveries . | . . . Exploration | -11 -10 -9 ------------- Run | Yrd Mat Mat Turns Passed 2006 | 75 1571 360 Spaces Moved 768 | 55 588 125 Core 9 | 8 . 1 Treads . | . . . Legs 759 | 47 588 124 Wheels . | . . . Hover . | . . . Flight . | . . . Fastest Speed 50 | 50 120 190 Average Speed 227 | 109 243 204 Slowest Speed 900 | 120 260 900 Overloaded Moves . | . . . Propulsion Burnouts . | . . . Robots Hopped . | . . . Cave-ins Triggered . | . . . Exploration Rate (%) 34 | 3 86 14 Regions Visited 2 Branch Regions . Pre-discovered Areas . | . . . Known Exits Taken . | . . . Unknown Exits Taken 2 | 1 1 . Scrap Searched . | . . . Spaces Dug . | . . . Terrain Destroyed . | . . . Melee . | . . . Projectile . | . . . AOE . | . . . Terrain Rammed . | . . . Walls Destroyed . | . . . Machines Disabled . | . . . Actions | -11 -10 -9 --------- Run | Yrd Mat Mat Total 891 | 69 653 169 Wait . | . . . Move 766 | 54 587 125 Hop . | . . . Pick Up 24 | 10 11 3 Fast Attach . | . . . Attach 8 | 5 2 1 Detach . | . . . Swap 9 | . 6 3 Drop 7 | . 7 . Fire 76 | . 39 37 Melee . | . . . Ram . | . . . Kick 1 | . 1 . Crush . | . . . Escape Stasis . | . . . Rewire . | . . . Trap . | . . . Miscellaneous . | . . . Route ------- -11/Scrapyard -10/Materials (discovered 3 exits: [*Mat x2] / [*Min]) -9/Materials History --------- Turn | Location | Event 3 | -11/Scrapyard | Discovered new exit (range 15) 76 | -11/Scrapyard | Entered Materials 317 | -10/Materials | Build established: Mutant 1059 | -10/Materials | Discovered new exit (range 16) 1188 | -10/Materials | Discovered new exit (range 6) 1556 | -10/Materials | Discovered new exit (range 16) 1647 | -10/Materials | Entered another Materials area 1647 | -9/Materials | Evolved 2 slots: Propulsion x2 1940 | -9/Materials | Build established: Scavenger-Mutant 2007 | -9/Materials | Self-destructed Last Messages --------------- Recycling unit begins recycling process. U-05 Engineer lays Concrete. R-06 Scavenger inserts Aluminum Leg into recycling unit. U-05 Engineer lays Concrete. R-06 Scavenger collects Wheel. U-05 Engineer lays Concrete. M-13 Machinist repairs Heat Sink. Aluminum Leg destroyed. U-05 Engineer lays Concrete. R-06 Scavenger collects Aluminum Leg. U-05 Engineer lays Concrete. U-05 Engineer destroyed. R-06 Scavenger collects Terrain Scanner. R-06 Scavenger collects Structural Scanner. Aluminum Leg destroyed. Ion Engine destroyed. R-06 Scavenger collects Terrain Scan Processor. Imp. EM Shotgun destroyed. R-06 Scavenger collects Corrupted Wheel. Map ----- +----------------------------------------------------+ | ????????????????????????????????????????? | | ????????????????????????????????????????? | | ??????????????????????????????? ????????? | | ??????????????????????# ?????? ???????? | | ??????????????????????# ??###+###?????? | | ??????????????????????# ?? #?????? | | ??????????????????????# ?? #?????? | | ?????????????????????#" +?????? | | ?????????????????????#T #?????? | | ??????????????????????" """ ] #?????? | | ??????????????????????# """ #?????? | | ??????????????????????# %""" #?????? | | ????????????????????### #?????? | | ????????????????????#"" #?????? | | ????????????????????#"T = #?????? | | ????????????????????#"" #?????? | | ??????????????????????#% r #?????? | | ?????###??????????????# g #?????? | | ????? + ############g #?????? | | ???????# % g #?????? | | ???????# gggg#"Y"#####?????? | | ???????# [ #"""#?????????? | | ????????############### ###########???? | | ??????????????????????# #? #???? | | ??????????????????????# #? #???? | | ??????????????????????# @# #???? | | ??????????????????????# # #???? | | ??????????????????????# + #???? | | ??????????????????????# # #???? | | ??????????????????????# # #???? | | ??????????????????????# #? #???? | | ??????????????????????# #?#########???? | | ??????????????????????# #?????????????? | | ??????????????????????# #?????????????? | | ??????????????????????# ##########????? | | ??????????????????????# # #????? | | ?????????????########## # """ #????? | | ?????????????# """ # # """ #????? | | ?????????????# """"" # # """ #????? | | ?????????????# """"" # #= #????? | | ?????????????# """"" # # """ #????? | | ?????????????# """ + + """ #????? | | ?????????????# # !# """ #????? | | ?????????????# # = # #????? | | ?????????????# # !##########????? | | ?????????????# [ # #?????????? | | ?????????????########## #?????????? | | ??????????????????????# #?????????? | | ??????????????????????#########?????????? | | ????????????????????????????????????????? | +----------------------------------------------------+ Best States ------------- Heat Dissipation 28 Energy Generation 10 Energy Capacity 250 Matter Stores 300 Matter Capacity 300 Sight Range 16 Terrain Scan Density 10 ECM Strength 1 Evasion (%) 55 Item Schematics ----------------- None Robot Schematics ------------------ None Fabricated ------------ Nothing Alien Tech Used ----------------- None Achievements -------------- Power Corrupts Challenges ------------ None Game ------ Seed FactoryMeleeConstruct Manual? 0 Play Time 00:16:00 Cumulative 1.7 hours Start 2024.04.01 @ 20:02:30 End 2024.04.01 @ 20:15:29 Sessions 1 Manual Loads 0 Difficulty Rogue Special Mode None Game No. 5 Rogue 5 Adventurer 0 Explorer 0 Win Type - Total 0 Types 0/0/0/0/0/0/0/0/0 Lore% 8 Gallery% 5 Achievement% 7 Wizard Run 0 Options --------- Layout 1 ASCII 0 Keyboard 0 Movement Mouse Keybinds 0 Fullscreen 2 Font 32/SmallcapsGlow Map View 50x35 Zoom Use 0% Tactical HUD 0 Map Filters NONE Filters NONE Steam 1 RUN: 8f2f2b1e-165d-48de-a874-36c10f6f1a7c